fUSD/lending_fUSD_20240329
["ID","MTS","AMOUNT","RATE_DAILY","PERIOD"]
[320897829,1711673466590,-500.0,0.00050684,120]
[320897830,1711673466600,-500.0,0.00050684,120]
[320897831,1711673466611,-500.0,0.00050684,120]
[320897832,1711673466621,-500.0,0.00050684,120]
[320897833,1711673466632,-565.98,0.00050684,120]
[320897834,1711673466643,-500.0,0.00050684,120]
[320897835,1711673466653,-500.0,0.00050684,120]
[320897836,1711673466663,-500.0,0.00050684,120]
[320897837,1711673466674,-536.56,0.00050684,120]
[320897838,1711673466684,-500.0,0.00050684,120]
[320897839,1711673466696,-500.0,0.00050684,120]
[320897840,1711673466706,-500.0,0.00050684,120]
[320897841,1711673466716,-500.0,0.00050684,120]
[320897842,1711673466727,-500.0,0.00050684,120]
[320897843,1711673466737,-500.0,0.00050684,120]
[320897844,1711673466748,-672.6,0.00050684,120]
[320897845,1711673466758,-500.0,0.00050684,120]
[320897846,1711673466768,-500.0,0.00050684,120]
[320897847,1711673466778,-500.0,0.00050684,120]
[320897848,1711673466788,-500.0,0.00050684,7]
[320897849,1711673466796,-500.0,0.00050684,120]
[320897850,1711673466806,-2451.34,0.00050684,120]
[320897851,1711673466815,-808.2,0.00050684,120]
[320897852,1711673466825,-500.0,0.00050684,120]
[320897853,1711673466836,-862.99,0.00050684,120]
[320897854,1711673466846,-500.0,0.00050684,120]
[320897855,1711673466855,-807.99,0.00050684,120]
[320897856,1711673466869,-964.18,0.00050684,120]
[320897857,1711673466878,-1189.17,0.00050684,120]
[320897858,1711673466895,-500.0,0.00050684,120]
[320897859,1711673466904,-500.0,0.00050684,120]
[320897860,1711673466932,-500.0,0.00050684,120]
[320897861,1711673466945,-869.19,0.00050684,120]
[320897862,1711673466955,-1961.36,0.00050684,120]
[320897863,1711673466967,-501.73556565,0.00050684,120]
[320897864,1711673466986,-500.0,0.00050684,120]
[320897865,1711673467013,-1396.85,0.00050684,120]
[320897866,1711673467029,-1181.64,0.00050684,120]
[320897867,1711673467046,-801.75,0.00050684,120]
[320897868,1711673467065,-1328.02,0.00050684,120]
[320897869,1711673467079,-500.0,0.00050684,80]
[320897870,1711673467088,-1632.37,0.00050684,120]
[320897871,1711673467098,-606.32,0.00050684,120]
[320897872,1711673467107,-1153.5,0.00050684,120]
[320897873,1711673467126,-500.0,0.00050684,2]
[320897874,1711673467136,-587.12,0.00050684,120]
[320897875,1711673467145,-500.0,0.00050684,120]
[320897876,1711673467173,-500.0,0.00050684,120]
[320897877,1711673467206,-837.7,0.00050684,120]
[320897878,1711673467226,-693.92,0.00050684,120]
[320897879,1711673467240,-755.98,0.00050684,120]
[320897880,1711673467254,-5619.06,0.00050684,120]
[320897881,1711673467265,-7958.74,0.00050684,120]
[320897882,1711673467274,-500.0,0.00050684,120]
[320897883,1711673467295,-588.61,0.00050684,120]
[320897884,1711673467306,-1294.82,0.00050684,120]
[320897885,1711673467322,-1258.38,0.00050684,120]
[320897886,1711673467349,-560.73,0.00050684,120]
[320897887,1711673467361,-661.06,0.00050684,120]
[320897888,1711673467377,-500.0,0.00050684,120]
[320897889,1711673467387,-2832.51,0.00050684,120]
[320897890,1711673467396,-1242.09,0.00050684,120]
[320897891,1711673467414,-1562.01,0.00050684,120]
[320897892,1711673467424,-1152.74,0.00050684,120]
[320897893,1711673467433,-508.15,0.00050684,120]
[320897894,1711673467443,-500.0,0.00050684,120]
[320897895,1711673467453,-1310.48,0.00050684,120]
[320897896,1711673467462,-978.48,0.00050684,120]
[320897897,1711673467472,-500.0,0.00050684,120]
[320897898,1711673467481,-918.9,0.00050684,120]
[320897899,1711673467491,-939.22,0.00050684,120]
[320897900,1711673467500,-1210.67,0.00050684,120]
[320897901,1711673467510,-723.87,0.00050684,120]
[320897902,1711673467519,-1069.55,0.00050684,120]
[320897903,1711673467529,-1412.5,0.00050684,120]
[320897904,1711673467539,-500.0,0.00050684,120]
[320897905,1711673467548,-4799.56,0.00050684,120]
[320897906,1711673467558,-1590.32,0.00050684,120]
[320897907,1711673467568,-500.0,0.00050684,120]
[320897908,1711673467577,-500.0,0.00050684,120]
[320897909,1711673467586,-2362.22,0.00050684,120]
[320897910,1711673467596,-802.1,0.00050684,120]
[320897911,1711673467605,-2407.8,0.00050684,120]
[320897912,1711673467614,-731.15,0.00050684,120]
[320897913,1711673467623,-840.9,0.00050684,120]
[320897914,1711673467632,-792.2,0.00050684,120]
[320897915,1711673467641,-1039.71,0.00050684,120]
[320897916,1711673467650,-500.0,0.00050684,60]
[320897917,1711673467659,-500.0,0.00050684,120]
[320897918,1711673467668,-500.0,0.00050684,120]
[320897919,1711673467678,-500.0,0.00050684,120]
[320897920,1711673467687,-730.77,0.00050684,120]
[320897921,1711673467698,-610.17,0.00050684,120]
[320897922,1711673467707,-500.0,0.00050684,120]
[320897923,1711673467716,-500.0,0.00050684,120]
[320897924,1711673467726,-9890.54,0.00050684,120]
[320897925,1711673467735,-606.66,0.00050684,120]
[320897926,1711673467744,-573.42,0.00050684,120]
[320897927,1711673467754,-1134.2,0.00050684,120]
[320897928,1711673467763,-919.69,0.00050684,120]
[320897929,1711673467773,-1377.54,0.00050684,120]
[320897930,1711673467782,-786.58,0.00050684,120]
[320897931,1711673467792,-452.8,0.00050684,120]
[320897932,1711673467801,-500.0,0.00050684,120]
[320897933,1711673467811,-4023.92,0.00050684,120]
[320897934,1711673467821,-3023.4,0.00050684,120]
[320897935,1711673467830,-636.31,0.00050684,120]
[320897936,1711673467840,-1100.73,0.00050684,120]
[320897937,1711673467849,-500.0,0.00050684,120]
[320897938,1711673467859,-1407.91,0.00050684,120]
[320897939,1711673467868,-1089.21,0.00050684,120]
[320897940,1711673467877,-734.22,0.00050684,120]
[320897941,1711673467886,-919.76,0.00050684,120]
[320897942,1711673467895,-500.0,0.00050684,2]
[320897943,1711673467904,-980.15,0.00050684,120]
[320897944,1711673467913,-1265.19,0.00050684,120]
[320897945,1711673467922,-995.13,0.00050684,120]
[320897946,1711673467932,-500.0,0.00050684,120]
[320897947,1711673467941,-1180.08,0.00050684,21]
[320897948,1711673467951,-868.14,0.00050684,120]
[320897949,1711673468154,-500.0,0.00050684,120]
[320897950,1711673468165,-1526.27,0.00050684,120]
[320897951,1711673468174,-3425.78,0.00050684,120]
[320897952,1711673468184,-763.58,0.00050684,120]
[320897953,1711673468193,-500.0,0.00050684,120]
[320897954,1711673468204,-788.83,0.00050684,120]
[320897955,1711673468214,-1621.94,0.00050684,120]
[320897956,1711673468223,-826.69,0.00050684,120]
[320897957,1711673468233,-3176.79,0.00050684,120]
[320897958,1711673468242,-725.98,0.00050684,120]
[320897959,1711673468253,-976.73,0.00050684,120]
[320897960,1711673468262,-2485.37,0.00050684,120]
[320897961,1711673468272,-729.23,0.00050684,120]
[320897962,1711673468281,-1659.15,0.00050684,120]
[320897963,1711673468291,-500.0,0.00050684,120]
[320897964,1711673468301,-766.33,0.00050684,120]
[320897965,1711673468312,-1196.14,0.00050684,120]
[320897966,1711673468321,-1177.99,0.00050684,120]
[320897967,1711673468330,-1126.47,0.00050684,120]
[320897968,1711673468341,-786.06,0.00050684,120]
[320897969,1711673468350,-773.98,0.00050684,120]
[320897970,1711673468360,-500.0,0.00050684,120]
[320897971,1711673468369,-845.19,0.00050684,120]
[320897972,1711673468378,-500.0,0.00050684,120]
[320897973,1711673468387,-1590.9,0.00050684,120]
[320897974,1711673468397,-950.48,0.00050684,120]
[320897975,1711673468407,-860.72,0.00050684,120]
[320897976,1711673468416,-525.07,0.00050684,120]
[320897977,1711673468426,-500.0,0.00050684,120]
[320897978,1711673468435,-872.56,0.00050684,120]
[320897979,1711673468445,-585.81,0.00050684,120]
[320897980,1711673468455,-879.8,0.00050684,120]
[320897981,1711673468465,-650.71,0.00050684,120]
[320897982,1711673468475,-155.26708591,0.00050691,60]
[320897983,1711673468485,-246.90262119,0.00050703,30]
[320897984,1711673468494,-749.06013115,0.00050706,47]
[320897985,1711673468503,-150.0,0.00050716,30]
[320897986,1711673468513,-5811.30510726,0.0005074,2]
[320897987,1711673468524,-246.90262119,0.0005075,30]
[320897988,1711673468533,-150.0,0.00050769,30]
[320897989,1711673468542,-150.0,0.00050787,30]
[320897990,1711673468552,-150.0,0.00050787,30]
[320897991,1711673468562,-246.90262119,0.00050796,30]
[320897992,1711673468571,-209.0,0.0005083,30]
[320897993,1711673468580,-246.90262119,0.00050843,30]
[320897994,1711673468590,-150.0,0.00050858,30]
[320897995,1711673468600,-150.0,0.00050859,30]
[320897996,1711673468608,-509.0,0.00050876,60]
[320897997,1711673468618,-246.90262119,0.0005089,30]
[320897998,1711673468628,-1681.71809835,0.0005089,27]
[320897999,1711673468637,-31611.41113858,0.000509,30]
[320898000,1711673468647,-1747.92211713,0.000509,120]
[320898001,1711673468656,-210.0,0.000509,30]
[320898002,1711673468665,-215.0,0.000509,30]
[320898003,1711673468675,-216.0,0.000509,30]
[320898004,1711673468684,-201.0,0.000509,30]
[320898005,1711673468694,-327.95468505,0.000509,120]
[320898006,1711673468705,-327.95468487,0.000509,120]
[320898007,1711673468714,-327.95468487,0.000509,120]
[320898008,1711673468725,-327.95468487,0.000509,120]
[320898009,1711673468734,-327.95468487,0.000509,120]
[320898010,1711673468743,-327.95468487,0.000509,120]
[320898011,1711673468756,-327.95468487,0.000509,120]
[320898012,1711673468765,-327.95468487,0.000509,120]
[320898013,1711673468779,-327.95468487,0.000509,120]
[320898014,1711673468789,-327.95468487,0.000509,120]
[320898015,1711673468799,-327.95468487,0.000509,120]
[320898016,1711673468810,-327.95468487,0.000509,120]
[320898017,1711673468820,-327.95468487,0.000509,120]
[320898018,1711673468829,-327.95468487,0.000509,120]
[320898019,1711673468839,-327.95468487,0.000509,120]
[320898020,1711673468847,-327.95468487,0.000509,120]
[320898021,1711673468857,-327.95468487,0.000509,120]
[320898022,1711673468873,-327.95468487,0.000509,120]
[320898023,1711673468882,-327.95468487,0.000509,120]
[320898024,1711673468891,-327.95468487,0.000509,120]
[320898025,1711673468903,-150.0,0.00050929,30]
[320898026,1711673468917,-246.90262119,0.00050936,30]
[320898027,1711673468930,-150.0,0.0005095,30]
[320898028,1711673468944,-630.0,0.00050958,120]
[320898029,1711673468954,-525.85,0.00050958,120]
[320898030,1711673468971,-735.85,0.00050958,120]
[320898031,1711673468984,-500.0,0.00050958,120]
[320898032,1711673468994,-536.7,0.00050958,120]
[320898033,1711673469003,-500.0,0.00050958,120]
[320898034,1711673469012,-578.03,0.00050958,120]
[320898035,1711673469033,-500.0,0.00050958,120]
[320898036,1711673469043,-500.0,0.00050958,120]
[320898037,1711673469053,-500.0,0.00050958,120]
[320898038,1711673469071,-500.0,0.00050958,120]
[320898039,1711673469087,-578.49929282,0.00050958,120]
[320898040,1711673469102,-500.0,0.00050958,120]
[320898041,1711673469111,-500.0,0.00050958,120]
[320898042,1711673469120,-500.0,0.00050958,120]
[320898043,1711673469145,-500.0,0.00050958,120]
[320898044,1711673469158,-500.0,0.00050958,120]
[320898045,1711673469170,-500.0,0.00050958,120]
[320898046,1711673469181,-500.0,0.00050958,120]
[320898047,1711673469190,-500.0,0.00050958,120]
[320898048,1711673469207,-500.0,0.00050958,120]
[320898049,1711673469221,-500.0,0.00050958,120]
[320898050,1711673469231,-590.48,0.00050958,120]
[320898051,1711673469241,-500.0,0.00050958,120]
[320898052,1711673469250,-500.0,0.00050958,120]
[320898053,1711673469260,-500.0,0.00050958,120]
[320898054,1711673469270,-500.0,0.00050958,120]
[320898055,1711673469279,-500.0,0.00050958,120]
[320898056,1711673469289,-500.0,0.00050958,120]
[320898057,1711673469298,-500.0,0.00050958,120]
[320898058,1711673469309,-500.0,0.00050958,120]
[320898059,1711673469319,-500.0,0.00050958,120]
[320898060,1711673469329,-500.0,0.00050958,120]
[320898061,1711673469339,-500.0,0.00050958,30]
[320898062,1711673469348,-752.88,0.00050958,120]
[320898063,1711673469358,-500.34,0.00050958,120]
[320898064,1711673469368,-500.0,0.00050958,120]
[320898065,1711673469377,-500.0,0.00050958,120]
[320898066,1711673469387,-535.8,0.00050958,120]
[320898067,1711673469397,-500.0,0.00050958,120]
[320898068,1711673469407,-500.0,0.00050958,120]
[320898069,1711673469418,-171.27,0.00050958,120]
[320898070,1711673469432,-511.11,0.00050958,120]
[320898071,1711673469441,-500.0,0.00050958,120]
[320898072,1711673469452,-500.0,0.00050958,120]
[320898073,1711673469475,-500.0,0.00050958,120]
[320898074,1711673469487,-500.0,0.00050958,120]
[320898075,1711673469498,-500.0,0.00050958,120]
[320898076,1711673469509,-520.88,0.00050958,120]
[320898077,1711673469521,-624.86646219,0.00050958,120]
[320898078,1711673469531,-500.0,0.00050958,60]
[320898079,1711673469541,-342.47289067,0.00050958,120]
[320898080,1711673469552,-500.0,0.00050958,120]
[320898081,1711673469562,-500.0,0.00050958,120]
[320898082,1711673469571,-500.0,0.00050958,120]
[320898083,1711673469581,-500.0,0.00050958,120]
[320898084,1711673469590,-565.98,0.00050958,120]
[320898085,1711673469600,-500.0,0.00050958,120]
[320898086,1711673469611,-500.0,0.00050958,120]
[320898087,1711673469620,-500.0,0.00050958,120]
[320898088,1711673469630,-536.56,0.00050958,120]
[320898089,1711673469640,-500.0,0.00050958,120]
[320898090,1711673469649,-500.0,0.00050958,120]
[320898091,1711673469659,-500.0,0.00050958,120]
[320898092,1711673469668,-500.0,0.00050958,120]
[320898093,1711673469677,-500.0,0.00050958,120]
[320898094,1711673469687,-560.13642224,0.00050958,120]
[320898095,1711673469698,-672.6,0.00050958,120]
[320898096,1711673469708,-500.0,0.00050958,120]
[320898097,1711673469717,-500.0,0.00050958,120]
[320898098,1711673469727,-500.0,0.00050958,120]
[320898099,1711673469737,-500.0,0.00050958,7]
[320898100,1711673469747,-500.0,0.00050958,120]
[320898101,1711673469756,-2451.34,0.00050958,120]
[320898102,1711673469766,-808.2,0.00050958,120]
[320898103,1711673469775,-500.0,0.00050958,120]
[320898104,1711673469785,-862.99,0.00050958,120]
[320898105,1711673469794,-500.0,0.00050958,120]
[320898106,1711673469804,-807.99,0.00050958,120]
[320898107,1711673469813,-964.18,0.00050958,120]
[320898108,1711673469823,-1189.17,0.00050958,120]
[320898109,1711673469832,-500.0,0.00050958,120]
[320898110,1711673469842,-500.0,0.00050958,120]
[320898111,1711673469852,-500.0,0.00050958,120]
[320898112,1711673469862,-869.19,0.00050958,120]
[320898113,1711673469872,-1961.36,0.00050958,120]
[320898114,1711673469882,-500.0,0.00050958,120]
[320898115,1711673469891,-1396.85,0.00050958,120]
[320898116,1711673469901,-1181.64,0.00050958,120]
[320898117,1711673469910,-801.75,0.00050958,120]
[320898118,1711673469920,-1328.02,0.00050958,120]
[320898119,1711673469929,-500.0,0.00050958,80]
[320898120,1711673469939,-1632.37,0.00050958,120]
[320898121,1711673469950,-606.32,0.00050958,120]
[320898122,1711673469959,-1153.5,0.00050958,120]
[320898123,1711673469970,-500.0,0.00050958,2]
[320898124,1711673469980,-587.12,0.00050958,120]
[320898125,1711673469990,-500.0,0.00050958,120]
[320898126,1711673469999,-500.0,0.00050958,120]
[320898127,1711673470009,-837.7,0.00050958,120]
[320898128,1711673470019,-693.92,0.00050958,120]
[320898129,1711673470029,-755.98,0.00050958,120]
[320898130,1711673470039,-5619.06,0.00050958,120]
[320898131,1711673470049,-7958.74,0.00050958,120]
[320898132,1711673470058,-500.0,0.00050958,120]
[320898133,1711673470068,-588.61,0.00050958,120]
[320898134,1711673470080,-1294.82,0.00050958,120]
[320898135,1711673470089,-1258.38,0.00050958,120]
[320898136,1711673470099,-560.73,0.00050958,120]
[320898137,1711673470108,-661.06,0.00050958,120]
[320898138,1711673470118,-500.0,0.00050958,120]
[320898139,1711673470128,-2832.51,0.00050958,120]
[320898140,1711673470137,-1242.09,0.00050958,120]
[320898141,1711673470147,-1562.01,0.00050958,120]
[320898142,1711673470157,-1152.74,0.00050958,120]
[320898143,1711673470167,-508.15,0.00050958,120]
[320898144,1711673470177,-500.0,0.00050958,120]
[320898145,1711673470187,-1310.48,0.00050958,120]
[320898146,1711673470197,-978.48,0.00050958,120]
[320898147,1711673470207,-500.0,0.00050958,120]
[320898148,1711673470217,-918.9,0.00050958,120]
[320898149,1711673470230,-939.22,0.00050958,120]
[320898150,1711673470241,-1210.67,0.00050958,120]
[320898151,1711673470250,-723.87,0.00050958,120]
[320898152,1711673470260,-1069.55,0.00050958,120]
[320898153,1711673470271,-1412.5,0.00050958,120]
[320898154,1711673470281,-500.0,0.00050958,120]
[320898155,1711673470291,-4799.56,0.00050958,120]
[320898156,1711673470301,-1590.32,0.00050958,120]
[320898157,1711673470311,-500.0,0.00050958,120]
[320898158,1711673470321,-500.0,0.00050958,120]
[320898159,1711673470332,-2362.22,0.00050958,120]
[320898160,1711673470342,-802.1,0.00050958,120]
[320898161,1711673470353,-2407.8,0.00050958,120]
[320898162,1711673470362,-840.9,0.00050958,120]
[320898163,1711673470373,-731.15,0.00050958,120]
[320898164,1711673470383,-792.2,0.00050958,120]
[320898165,1711673470393,-1039.71,0.00050958,120]
[320898166,1711673470403,-500.0,0.00050958,60]
[320898167,1711673470413,-500.0,0.00050958,120]
[320898168,1711673470423,-500.0,0.00050958,120]
[320898169,1711673470433,-500.0,0.00050958,120]
[320898170,1711673470443,-730.77,0.00050958,120]
[320898171,1711673470454,-610.17,0.00050958,120]
[320898172,1711673470464,-500.0,0.00050958,120]
[320898173,1711673470473,-500.0,0.00050958,120]
[320898174,1711673470483,-9890.54,0.00050958,120]
[320898175,1711673470492,-606.66,0.00050958,120]
[320898176,1711673470501,-573.42,0.00050958,120]
[320898177,1711673470510,-1134.2,0.00050958,120]
[320898178,1711673470519,-919.69,0.00050958,120]
[320898179,1711673470529,-1377.54,0.00050958,120]
[320898180,1711673470539,-786.58,0.00050958,120]
[320898181,1711673470548,-4023.92,0.00050958,120]
[320898182,1711673470558,-3023.4,0.00050958,120]
[320898183,1711673470567,-636.31,0.00050958,120]
[320898184,1711673470577,-1100.73,0.00050958,120]
[320898185,1711673470587,-500.0,0.00050958,120]
[320898186,1711673470596,-1407.91,0.00050958,120]
[320898187,1711673470606,-1089.21,0.00050958,120]
[320898188,1711673470615,-734.22,0.00050958,120]
[320898189,1711673470624,-919.76,0.00050958,120]
[320898190,1711673470633,-500.0,0.00050958,2]
[320898191,1711673470642,-980.15,0.00050958,120]
[320898192,1711673470652,-1265.19,0.00050958,120]
[320898193,1711673470661,-995.13,0.00050958,120]
[320898194,1711673470671,-500.0,0.00050958,120]
[320898195,1711673470681,-1180.08,0.00050958,21]
[320898196,1711673470690,-868.14,0.00050958,120]
[320898197,1711673470700,-500.0,0.00050958,120]
[320898198,1711673470709,-1526.27,0.00050958,120]
[320898199,1711673470718,-3425.78,0.00050958,120]
[320898200,1711673470728,-763.58,0.00050958,120]
[320898201,1711673470737,-500.0,0.00050958,120]
[320898202,1711673470746,-788.83,0.00050958,120]
[320898203,1711673470755,-1621.94,0.00050958,120]
[320898204,1711673470764,-826.69,0.00050958,120]
[320898205,1711673470774,-3176.79,0.00050958,120]
[320898206,1711673470783,-725.98,0.00050958,120]
[320898207,1711673470792,-976.73,0.00050958,120]
[320898208,1711673470802,-2485.37,0.00050958,120]
[320898209,1711673470811,-729.23,0.00050958,120]
[320898210,1711673470820,-1659.15,0.00050958,120]
[320898211,1711673470831,-500.0,0.00050958,120]
[320898212,1711673470840,-766.33,0.00050958,120]
[320898213,1711673470849,-1196.14,0.00050958,120]
[320898214,1711673470859,-1177.99,0.00050958,120]
[320898215,1711673470868,-1126.47,0.00050958,120]
[320898216,1711673470878,-786.06,0.00050958,120]
[320898217,1711673470889,-773.98,0.00050958,120]
[320898218,1711673470898,-500.0,0.00050958,120]
[320898219,1711673470908,-845.19,0.00050958,120]
[320898220,1711673470918,-500.0,0.00050958,120]
[320898221,1711673470928,-1590.9,0.00050958,120]
[320898222,1711673470938,-950.48,0.00050958,120]
[320898223,1711673470948,-860.72,0.00050958,120]
[320898224,1711673470957,-525.07,0.00050958,120]
[320898225,1711673470967,-500.0,0.00050958,120]
[320898226,1711673470977,-872.56,0.00050958,120]
[320898227,1711673470986,-585.81,0.00050958,120]
[320898228,1711673470996,-879.8,0.00050958,120]
[320898229,1711673471005,-650.71,0.00050958,120]
[320898230,1711673471015,-246.90262119,0.00050983,30]
[320898231,1711673471024,-200.0,0.00050987,2]
[320898232,1711673471193,-1000.0,0.00050999,120]
[320898233,1711673471206,-15128.0,0.00051,120]
[320898234,1711673471215,-500.0,0.00051,6]
[320898235,1711673471224,-450.0,0.00051,120]
[320898236,1711673471234,-2000.0,0.00051,120]
[320898237,1711673471243,-2000.0,0.00051,120]
[320898238,1711673471252,-600.0,0.00051,52]
[320898239,1711673471262,-17594.0,0.00051,120]
[320898240,1711673471271,-2500.0,0.00051,120]
[320898241,1711673471282,-277.636697,0.00051,30]
[320898242,1711673471291,-2117.86935,0.00051,30]
[320898243,1711673471301,-226.796476,0.00051,30]
[320898244,1711673471310,-767.343968,0.00051,30]
[320898245,1711673471320,-153.468794,0.00051,30]
[320898246,1711673471329,-423.57387,0.00051,30]
[320898247,1711673471339,-577.042664,0.00051,30]
[320898248,1711673471349,-150.0,0.00051,30]
[320898249,1711673471359,-165.96539819,0.00051014,120]
[320898250,1711673471368,-316.48888889,0.00051014,120]
[320898251,1711673471378,-246.90262119,0.0005103,30]
[320898252,1711673471388,-150.0,0.00051041,30]
[320898253,1711673471398,-152.0,0.00051044,4]
[320898254,1711673471408,-150.0,0.00051058,120]
[320898255,1711673471418,-150.0,0.00051071,30]
[320898256,1711673471428,-246.90262119,0.00051076,30]
[320898257,1711673471438,-311.2,0.000511,7]
[320898258,1711673471447,-150.0,0.00051118,60]
[320898259,1711673471458,-3209.09254995,0.00051121,2]
[320898260,1711673471469,-7282.47036541,0.00051121,2]
[320898261,1711673471479,-246.90262119,0.00051123,30]
[320898262,1711673471489,-150.0,0.00051131,30]
[320898263,1711673471498,-150.0,0.00051135,60]
[320898264,1711673471508,-48900.4266312,0.00051141,25]
[320898265,1711673471518,-150.0,0.00051142,30]
[320898266,1711673471527,-509.0,0.0005115,60]
[320898267,1711673471537,-246.90262119,0.0005117,30]
[320898268,1711673471549,-700.0,0.00051195,90]
[320898269,1711673471559,-906.23268966,0.000512,30]
[320898270,1711673471569,-150.0,0.00051213,30]
[320898271,1711673471579,-246.90262119,0.00051216,30]
[320898272,1711673471588,-75031.32840495,0.00051221,8]
[320898273,1711673471598,-150.0,0.00051222,30]
[320898274,1711673471608,-457.91594376,0.00051229,2]
[320898275,1711673471617,-630.0,0.00051232,120]
[320898276,1711673471626,-525.85,0.00051232,120]
[320898277,1711673471636,-735.85,0.00051232,120]
[320898278,1711673471645,-500.0,0.00051232,120]
[320898279,1711673471655,-536.7,0.00051232,120]
[320898280,1711673471664,-500.0,0.00051232,120]
[320898281,1711673471674,-578.03,0.00051232,120]
[320898282,1711673471685,-500.0,0.00051232,120]
[320898283,1711673471694,-500.0,0.00051232,120]
[320898284,1711673471705,-500.0,0.00051232,120]
[320898285,1711673471715,-500.0,0.00051232,120]
[320898286,1711673471724,-500.0,0.00051232,120]
[320898287,1711673471734,-500.0,0.00051232,120]
[320898288,1711673471743,-500.0,0.00051232,120]
[320898289,1711673471752,-500.0,0.00051232,120]
[320898290,1711673471761,-500.0,0.00051232,120]
[320898291,1711673471771,-500.0,0.00051232,120]
[320898292,1711673471780,-500.0,0.00051232,120]
[320898293,1711673471789,-500.0,0.00051232,120]
[320898294,1711673471799,-500.0,0.00051232,120]
[320898295,1711673471808,-500.0,0.00051232,120]
[320898296,1711673471817,-590.48,0.00051232,120]
[320898297,1711673471826,-500.0,0.00051232,120]
[320898298,1711673471836,-500.0,0.00051232,120]
[320898299,1711673471846,-500.0,0.00051232,120]
[320898300,1711673471855,-500.0,0.00051232,120]
[320898301,1711673471864,-500.0,0.00051232,120]
[320898302,1711673471874,-500.0,0.00051232,120]
[320898303,1711673471884,-500.0,0.00051232,120]
[320898304,1711673471893,-500.0,0.00051232,120]
[320898305,1711673471902,-500.0,0.00051232,120]
[320898306,1711673471912,-500.0,0.00051232,120]
[320898307,1711673471921,-381.50815445,0.00051232,30]
[320898308,1711673471930,-752.88,0.00051232,120]
[320898309,1711673471940,-500.34,0.00051232,120]
[320898310,1711673471950,-500.0,0.00051232,120]
[320898311,1711673471959,-500.0,0.00051232,120]
[320898312,1711673471968,-535.8,0.00051232,120]
[320898313,1711673471978,-500.0,0.00051232,120]
[320898314,1711673471988,-500.0,0.00051232,120]
[320898315,1711673471998,-171.27,0.00051232,120]
[320898316,1711673472007,-511.11,0.00051232,120]
[320898317,1711673472016,-500.0,0.00051232,120]
[320898318,1711673472026,-500.0,0.00051232,120]
[320898319,1711673472035,-500.0,0.00051232,120]
[320898320,1711673472044,-500.0,0.00051232,120]
[320898321,1711673472056,-526.41769125,0.00051232,120]
[320898322,1711673472066,-520.88,0.00051232,120]
[320898323,1711673472077,-500.0,0.00051232,120]
[320898324,1711673472087,-500.0,0.00051232,120]
[320898325,1711673472098,-500.0,0.00051232,120]
[320898326,1711673472108,-500.0,0.00051232,120]
[320898327,1711673472117,-565.98,0.00051232,120]
[320898328,1711673472126,-500.0,0.00051232,120]